Cogmind - Beta 15 @@@ ROGUE MODE // 2025.07.08 @ 13:23:41 Player: beans Result: Destroyed by Y-45 Defender with Heavy Assault Rifle Performance ------------- Evolutions (1) 500 Regions Visited (4) 800 Robots Destroyed (34) 170 Value Destroyed (538) 538 Prototype IDs (2) 40 Alien Tech Used (0) 0 Bonus (0) 0 TOTAL SCORE: 2048 Bonus ------- None Cogmind --------- Core Integrity 0/400 Matter 294/300 Energy 99/100 System Corruption 0% Temperature Cool (0) Movement Core (50) Location -9/Storage Parts ------- > --- POWER (1) -------- (None) > --- PROPULSION (2) --- (None) > --- UTILITY (3) ------ Signal Interpreter Targeting Computer > --- WEAPON (3) ------- (None) > --- INVENTORY (5) ---- (None) Peak State ------------ > --- POWER ------------ Improved Ion Engine > --- PROPULSION ------- Light Treads Light Treads > --- UTILITY ---------- Signal Interpreter Targeting Computer > --- WEAPON ----------- Medium Laser Heavy Assault Rifle Heavy Assault Rifle > --- INVENTORY -------- Medium Laser [Rating: 11] Favorites ----------- Power Improved Ion Engine Engine Improved Ion Engine Propulsion Light Treads Treads Light Treads Hover Unit Hover Unit Utility Signal Interpreter Processor Signal Interpreter Weapon Medium Laser Energy Gun Medium Laser Ballistic Gun Heavy Assault Rifle Launcher Grenade Launcher Build | -11 -10 -10 -9 -9 ------- Run | Yrd Mat Min Mat Sto Slots Evolved 2 | . . . 2 . Power . | . . . . . Propulsion . | . . . . . Utility 1 | . . . 1 . Weapon 1 | . . . 1 . Parts Attached 19 | 5 2 2 9 1 Power 2 | 1 . . 1 . Engine 2 | 1 . . 1 . Core . | . . . . . Reactor . | . . . . . Propulsion 7 | 2 2 . 2 1 Treads 2 | 2 . . . . Leg . | . . . . . Wheel . | . . . . . Hover 5 | . 2 . 2 1 Flight . | . . . . . Utility 2 | . . . 2 . Device . | . . . . . Storage . | . . . . . Processor 2 | . . . 2 . Hackware . | . . . . . Protection . | . . . . . Artifact . | . . . . . Weapon 8 | 2 . 2 4 . Energy Gun 3 | 2 . . 1 . Energy Cannon . | . . . . . Ballistic Gun 3 | . . . 3 . Ballistic Cannon . | . . . . . Launcher 2 | . . 2 . . Special Weapon . | . . . . . Impact Weapon . | . . . . . Slashing Weapon . | . . . . . Piercing Weapon . | . . . . . Special Melee Weapon . | . . . . . Unidentified Prototypes . | . . . . . Parts Lost 14 | . . 4 8 2 Power 1 | . . . 1 . Propulsion 5 | . . 2 2 1 Utility . | . . . . . Weapon 8 | . . 2 5 1 Highest Loss Streak 6 | . . 3 6 2 To Critical Strikes . | . . . . . Average Backups 1 | . 1 2 . . Power . | . . . . . Propulsion . | . . 2 . . Utility . | . . . . . Weapon . | . 1 . . . Tool/Special . | . . . . . Unused Backups . | . . . . . Power . | . . . . . Propulsion . | . . . . . Utility . | . . . . . Weapon . | . . . . . Tool/Special . | . . . . . Average Slot Usage (%) 62 | . 71 47 68 29 Engine 10 | . 14 14 11 . Treads 13 | . 27 . 13 . Hover 2 | . . 7 1 1 Processor 8 | . . . 10 22 Energy Gun 19 | . 28 17 19 6 Ballistic Gun 7 | . . . 12 . Launcher 1 | . . 9 . . Peak Build Rating 11 | 5 5 5 11 5 Average Rating 6 | 4 5 3 8 3 On Entrance 3 | . 5 5 3 4 Naked Turns . | . . . . . Heaviest Build 15 | 9 9 11 15 3 Greatest Support 40 | 40 40 12 40 6 Greatest Overweight (x) 4 | . . 2 4 . Average Overweight (x) . | . . 1 . . Largest Inventory Capacity 5 | 5 5 5 5 5 Average Capacity 5 | 5 5 5 5 5 Most Carried 5 | 5 4 4 3 1 Average Carried 1 | . 1 2 . . Final Capacity 5 | 5 5 5 5 5 Final Carried 4 | . 4 2 . . Class Distribution -------------------- 50% | Mutant 44% | Gunner 3% | Scavenger-Mutant Dominant Class ---------------- Mutant | -10/Materials Mutant | -10/Mines Gunner | -9/Materials Mutant | -9/Storage Resources | -11 -10 -10 -9 -9 ----------- Run | Yrd Mat Min Mat Sto Matter Collected 650 | 190 23 147 268 22 Remotely . | . . . . . Salvage Created 917 | . 107 6 782 22 Parts 66 | . 10 1 53 2 Haulers Intercepted 1 | . 1 . . . Recyclers Shooed 2 | . . . 2 . Parts Field Recycled . | . . . . . Retrieved Matter . | . . . . . Parts Self-Destructed . | . . . . . Prevented . | . . . . . Kills | -11 -10 -10 -9 -9 ------- Run | Yrd Mat Min Mat Sto Combat Hostiles Destroyed 20 | . 1 3 16 . Guns 17 | . 1 . 16 . AOE 3 | . . 3 . . Classes Destroyed 10 | . 4 2 4 . Worker 4 | . . . 4 . Builder 3 | . 2 . 1 . Tunneler 1 | . . . 1 . Hauler 1 | . 1 . . . Recycler 2 | . . . 2 . Watcher 5 | . 1 . 3 1 Swarmer 12 | . 1 . 11 . Grunt 2 | . . 1 1 . Sentry 4 | . . . 4 . Assembled 2 | . . 2 . . Best Kill Streak 6 | . 2 2 6 1 Combat Bots Only 4 | . 1 2 4 . Max Kills in Single Turn 2 | . 2 1 2 1 Gunslinging . | . . . . . Exploded 1 | . . 1 . . Melee . | . . . . . Uniques/NPCs Destroyed . | . . . . . Combat | -11 -10 -10 -9 -9 -------- Run | Yrd Mat Min Mat Sto Hostile Shots Fired 170 | . 8 11 126 25 Missed 43 | . 3 2 32 6 Hits 127 | . 5 9 94 19 Melee 1 | . . 1 . . Projectile 126 | . 5 8 94 19 Damage Taken 1482 | . 51 210 938 283 Core 456 | . 23 30 198 205 Absorbed by Shields . | . . . . . Core Remaining (%) 89 | 100 . 78 . . Volleys Fired 113 | . 38 6 62 7 Largest 3 | . 2 2 3 1 Hottest 123 | . 100 100 123 56 Shots Fired 264 | . 76 11 170 7 Gun 257 | . 76 4 170 7 Cannon . | . . . . . Launcher 7 | . . 7 . . Special . | . . . . . Kinetic 80 | . . . 80 . Thermal 177 | . 76 4 90 7 Explosive 7 | . . 7 . . Electromagnetic . | . . . . . Robot Hit Streak 14 | . 4 4 14 4 Robot Miss Streak 4 | . 3 2 4 1 Penetration Max . | . . . . . Secondary Targets 4 | . . . 4 . Max Gunslinging Chain 1 | . . . 1 . Shots Hit Robots 91 | . 8 4 74 5 Core Hits 53 | . 6 10 35 2 Critical Kills . | . . . . . Critical Parts Destroyed . | . . . . . Critical Strikes 3 | . . . 3 . Burn 3 | . . . 3 . Melee Attacks . | . . . . . Impact . | . . . . . Slashing . | . . . . . Piercing . | . . . . . Sneak Attacks . | . . . . . Combat Hostiles . | . . . . . Follow-up Attacks . | . . . . . Damage Inflicted 1664 | . 197 357 1034 76 Guns 1242 | . 113 24 1034 71 Cannons . | . . . . . Explosions 417 | . 84 333 . . Melee . | . . . . . Ramming 5 | . . . . 5 Kinetic 435 | . . . 435 . Thermal 807 | . 113 24 599 71 Explosive 417 | . 84 333 . . Electromagnetic . | . . . . . Impact . | . . . . . Slashing . | . . . . . Piercing . | . . . . . Highest Corruption . | . . . . . Average Corruption . | . . . . . Corruption Purged . | . . . . . Corruption Blocked . | . . . . . Overload Shots . | . . . . . Overflow Damage 5 | . . 5 . . Projectiles . | . . . . . Explosions 5 | . . 5 . . Melee . | . . . . . Knockbacks . | . . . . . Impact . | . . . . . Kinetic . | . . . . . Secondary . | . . . . . Self-Inflicted Damage 86 | . . 84 . 2 Shots 3 | . . 3 . . Rammed 1 | . . . . 1 Targets Rammed 1 | . . . . 1 Kicked . | . . . . . Crushed . | . . . . . Highest Temperature 351 | . 351 39 333 31 Average Temperature 101 | . 110 19 102 14 Received Heat Transfer 414 | . 9 63 252 90 Effects 2 | . 2 . . . Interference 2 | . 2 . . . Siege Activations . | . . . . . Martial Activations . | . . . . . Shielding Activations . | . . . . . Robots Disrupted . | . . . . . Combat Hostiles . | . . . . . Robots Corrupted . | . . . . . Combat Hostiles . | . . . . . Parts Fried . | . . . . . Impact Corruptions . | . . . . . Robots Melted . | . . . . . Combat Hostiles . | . . . . . Parts Melted 3 | . . . 3 . Heat Transferred 2590 | . 333 74 1998 185 Parts Sabotaged . | . . . . . Parts Stolen . | . . . . . Parts Stripped . | . . . . . Power Chain Reactions . | . . . . . Alert | -11 -10 -10 -9 -9 ------- Run | Yrd Mat Min Mat Sto Maximum Alert Level 1 | . . . 1 . Low Security (%) 95 | 100 100 100 91 100 Level 1 4 | . . . 8 . Level 2 . | . . . . . Level 3 . | . . . . . Level 4 . | . . . . . Level 5 . | . . . . . High Security . | . . . . . Max Security . | . . . . . Peak Influence 268 | . 57 40 268 82 Initial 82 | . . 18 . 82 Average 37 | . 11 10 52 57 Influence Increases 795 | . 137 64 557 37 Destroy 0b10 Robot/C 360 | . 20 20 320 . Destroy 0b10 Robot/NC 80 | . 20 . 55 5 Destroy Leader 92 | . 4 . 86 2 Successful Hack 19 | . . . 19 . Disable Machine 75 | . 30 . 45 . Destroy Structure 64 | . 33 29 2 . Lose Combat Pursuer 105 | . 30 15 30 30 Influence Decreases 766 | . 90 111 361 204 Entered New Map 143 | . . 29 . 114 Time Decay 487 | . 90 46 281 70 Lost Part 136 | . . 36 80 20 Squads Dispatched 1 | . . . 1 . Investigation . | . . . . . Extermination . | . . . . . Reinforcement 1 | . . . 1 . Assault . | . . . . . Garrison . | . . . . . Intercept . | . . . . . Searches Triggered . | . . . . . Construction Impeded . | . . . . . Haulers Reinforced . | . . . . . Active Scanning Responses . | . . . . . Cargo Convoy Interrupts . | . . . . . Stealth | -11 -10 -10 -9 -9 --------- Run | Yrd Mat Min Mat Sto Distress Signals 3 | . . 1 1 1 Communications Jammed . | . . . . . Distress Signals . | . . . . . Times Spotted 46 | . 6 7 29 4 Peak Tracking Total 5 | . 5 2 5 3 Tactical Retreats 6 | . 1 1 2 2 Traps | -11 -10 -10 -9 -9 ------- Run | Yrd Mat Min Mat Sto Traps Triggered 1 | . . . . 1 Indirectly . | . . . . . Trap Hack Attempts . | . . . . . Triggered . | . . . . . Disarmed . | . . . . . Reprogrammed . | . . . . . Reused . | . . . . . Traps Extracted . | . . . . . Installed . | . . . . . Triggered . | . . . . . Machines | -11 -10 -10 -9 -9 ---------- Run | Yrd Mat Min Mat Sto Machines Disabled 5 | . 2 . 3 . Max in Single Turn 1 | . 1 . 1 . Machines Repaired . | . . . . . Machines Dismantled . | . . . . . Machines Sabotaged . | . . . . . Overloaded Fab Kills . | . . . . . Hacking | -11 -10 -10 -9 -9 --------- Run | Yrd Mat Min Mat Sto Machines Accessed 7 | . 1 . 4 2 Terminals 5 | . 1 . 4 . Fabricators . | . . . . . Repair Stations 1 | . . . . 1 Recycling Units 1 | . . . . 1 Scanalyzers . | . . . . . Garrison Access . | . . . . . Total Hacks 15 | . 1 . 10 4 Successful 11 | . . . 7 4 Failed 4 | . 1 . 3 . Catastrophic . | . . . . . Database Lockouts . | . . . . . Manual . | . . . . . Terminals 11 | . 1 . 10 . Fabricators . | . . . . . Repair Stations 1 | . . . . 1 Recycling Units 3 | . . . . 3 Scanalyzers . | . . . . . Garrison Access . | . . . . . Terminal Hacks 7 | . . . 7 . Record 4 | . . . 4 . Prototype ID Bank 1 | . . . 1 . Alert Level 1 | . . . 1 . Dispatch Records 1 | . . . 1 . Fabricator Hacks . | . . . . . Repair Station Hacks 1 | . . . . 1 Scan Component 1 | . . . . 1 Recycling Unit Hacks 3 | . . . . 3 Process 1 | . . . . 1 Report Inventory 1 | . . . . 1 Retrieve Matter 1 | . . . . 1 Scanalyzer . | . . . . . Garrison Access Hacks . | . . . . . Unauthorized Hacks . | . . . . . Terminals . | . . . . . Fabricators . | . . . . . Repair Stations . | . . . . . Recycling Units . | . . . . . Scanalyzers . | . . . . . Garrison Access . | . . . . . Data Cores Recovered . | . . . . . Used . | . . . . . Hacking Detections 2 | . . . 1 1 Full Trace Events . | . . . . . Feedback Events . | . . . . . Feedback Blocked . | . . . . . Robot Schematics Acquired . | . . . . . Robots Built . | . . . . . Authchips . | . . . . . Time . | . . . . . Total Robot Build Rating . | . . . . . Part Schematics Acquired . | . . . . . Parts Built . | . . . . . Authchips . | . . . . . Time . | . . . . . Total Part Build Rating . | . . . . . Parts Repaired . | . . . . . Time . | . . . . . Parts Recycled . | . . . . . Recycled Matter . | . . . . . Retrieved Matter . | . . . . . Retrieved Components . | . . . . . Parts Scanalyzed . | . . . . . Part Schematics Acquired . | . . . . . Parts Damaged . | . . . . . Bothacking | -11 -10 -10 -9 -9 ------------ Run | Yrd Mat Min Mat Sto Used RIF Installer . | . . . . . Robots Hacked . | . . . . . Non-combat . | . . . . . Combat . | . . . . . Robot Hacks Applied . | . . . . . Relay Couplers Released . | . . . . . Fabnet Peak Effective % . | . . . . . Robots Rewired . | . . . . . Allies Hacked . | . . . . . Hacks Repelled . | . . . . . Allies | -11 -10 -10 -9 -9 -------- Run | Yrd Mat Min Mat Sto Total Allies . | . . . . . Largest Group . | . . . . . Highest-Rated Group . | . . . . . Highest-Rated Ally . | . . . . . Total Orders . | . . . . . Ally Attacks . | . . . . . Total Damage . | . . . . . Kills . | . . . . . Allies Corrupted . | . . . . . Allies Melted . | . . . . . Intel | -11 -10 -10 -9 -9 ------- Run | Yrd Mat Min Mat Sto Active Infowar (turns) . | . . . . . Robot Analysis Total . | . . . . . Derelict Logs Recovered . | . . . . . Drone Launches . | . . . . . Drone Recoveries . | . . . . . Exploration | -11 -10 -10 -9 -9 ------------- Run | Yrd Mat Min Mat Sto Turns Passed 1699 | 90 373 174 910 152 Spaces Moved 809 | 63 116 105 329 196 Core 337 | 18 . 60 69 190 Treads 383 | 45 103 . 235 . Legs . | . . . . . Wheels . | . . . . . Hover 89 | . 13 45 25 6 Flight . | . . . . . Fastest Speed 50 | 50 56 56 50 50 Average Speed 128 | 128 148 132 165 50 Slowest Speed 250 | 160 160 150 250 60 Overloaded Moves . | . . . . . Propulsion Burnouts . | . . . . . Robots Hopped . | . . . . . Potential Cave-ins . | . . . . . Cave-ins Triggered . | . . . . . Exploration Rate (%) 22 | 4 25 33 26 23 Regions Visited 4 Branch Regions 2 Pre-discovered Areas 1 | . . . . 1 Known Exits Taken 1 | . . . 1 . Unknown Exits Taken 3 | 1 1 1 . . Scrap Searched 1 | . . 1 . . Spaces Dug . | . . . . . Terrain Destroyed 93 | . 55 38 . . Melee . | . . . . . Projectile . | . . . . . AOE 93 | . 55 38 . . Terrain Rammed . | . . . . . Walls Destroyed . | . . . . . Machines Disabled . | . . . . . Actions | -11 -10 -10 -9 -9 --------- Run | Yrd Mat Min Mat Sto Total 1242 | 72 239 126 563 242 Wait 277 | . 80 12 149 36 Move 805 | 62 115 104 328 196 Hop . | . . . . . Pick Up 19 | 5 4 . 9 1 Fast Attach . | . . . . . Attach 18 | 5 . 2 10 1 Detach . | . . . . . Swap 6 | . 2 2 2 . Drop 3 | . . . 3 . Fire 113 | . 38 6 62 7 Melee . | . . . . . Ram 1 | . . . . 1 Kick . | . . . . . Crush . | . . . . . Escape Stasis . | . . . . . Rewire . | . . . . . Trap . | . . . . . Miscellaneous . | . . . . . Route ------- -11/Scrapyard -10/Materials -10/Mines -9/Materials -9/Storage History --------- Turn | Location | Event 5 | -11/Scrapyard | Discovered new exit (range 15) 91 | -11/Scrapyard | Entered Materials 301 | -10/Materials | Build established: Mutant 421 | -10/Materials | Discovered new exit (range 13) 464 | -10/Materials | Entered Mines 467 | -10/Mines | Assembled infested the area 472 | -10/Mines | Assisted by a Guerilla fighting off Assembled 559 | -10/Mines | Lost 3 parts (1n2w) 633 | -10/Mines | Discovered new exit (range 2) 638 | -10/Mines | Entered Materials 638 | -9/Materials | Evolved 2 slots: Utility x1, Weapon x1 968 | -9/Materials | Build established: Gunner 1450 | -9/Materials | Discovered new exit (range 15) 1544 | -9/Materials | Identified exit to Storage 1548 | -9/Materials | Entered Storage 1552 | -9/Storage | Core integrity fell below 50% 1576 | -9/Storage | Lost 6 parts (1p2n3w) 1647 | -9/Storage | Core integrity fell below 20% 1659 | -9/Storage | Learned location of Armory (-4) 1700 | -9/Storage | Destroyed by Y-45 Defender with Heavy Assault Rifle Last Messages --------------- Analyzing inventory... W-16 Scout destroyed. Acquired 22 matter. Acquired Hover Unit. U-05 Engineer lays Concrete. Hover Unit destroyed. Beam Rifle destroyed. Slammed into Y-45 Defender. Targeting Computer broken. Destabilizing: Short circuit. K-01 Serf collects debris. A derelict emerges from hiding: "Psst-beep. Hey you, we've already cleared out from here, don't stick around. I stayed behind to warn any stragglers, and you certainly look like you're straggling." G3-PQK(g): "We'll attack Armory later, meet at one of the rendevous points." World map updated: -4/Armory. G3-PQK(g) slips back into hiding. Map ----- +----------------------------------------------------+ | ???#""" """"" # # """ """ #????????????? | | ???#"R + */ #????????????? | | ???#""" """"" # # #????????????? | | ???#### """"" # # #????????????? | | ??????# """"" # # #????????????? | | ??????# # ###########????????????? | | ??????#######+## #??????????????????????? | | ??????# # #??????????????????????? | | ??????# """"" # #??????????????????????? | | ??????# """"" # #??????????????????????? | | ????### """"" # #??????????????????????? | | ????#"" + #??????????????????????? | | ????#"Y """"" # #??????????????????????? | | ????#"" """"" # #??????????????????????? | | ????### """"" # #??????????????????????? | | ??????# # #??????????????????????? | | ??????########## #??????????????????????? | | ??????# ????? # #????###???????????????? | | ??????# ?????" #u #???""""#??????????????? | | ??????# ?????" # #???"T""###????????????? | | ??????# ?????" # #?? !! ?????????????? | | ??????# """""" + #? !! ???????????????? | | ??????# # # !!?????????????????? | | ??????# # # ???????????????????? | | ??????# # ; ?????????????????????? | | ??????# #Y @#??????????????????????? | | ??????###+###### #??????????????????????? | | ?????#### ###### #??????????????????????? | | ?????# g ########???????????????? | | ?????# # #???????????????? | | ?????# # #???????????????? | | ?????# + #???????????????? | | ?????###+########### #???????????????? | | ??????# #????????# #???????????????? | | ??????# #????????# #???????????????? | | ??????# #????????########???????????????? | | ??????#####???????????????????????????????? | | ??????????????????????????????????????????? | | ??????????????????????????????????????????? | | ??????????????????????????????????????????? | | ??????????????????????????????????????????? | | ??????????????????????????????????????????? | | ??????????????????????????????????????????? | | ??????????????????????????????????????????? | | ??????????????????????????????????????????? | | ??????????????????????????????????????????? | | ??????????????????????????????????????????? | | ??????????????????????????????????????????? | | ??????????????????????????????????????????? | | ??????????????????????????????????????????? | +----------------------------------------------------+ Best States ------------- Heat Dissipation 28 Energy Generation 12 Energy Capacity 265 Matter Stores 300 Matter Capacity 300 Sight Range 16 Terrain Scan Density 10 Evasion (%) 53 Targeting Accuracy 5 Recoil Reduction 2 Item Schematics ----------------- None Robot Schematics ------------------ None Fabricated ------------ Nothing Repaired ---------- Nothing Alien Tech Used ----------------- None Achievements -------------- None Challenges ------------ None Game ------ Seed ClaymoresThiefCompressor Manual? 0 Play Time 00:13:13 Cumulative 43.6 hours Start 2025.07.08 @ 10:51:31 End 2025.07.08 @ 13:23:41 Sessions 1 Manual Loads 0 Difficulty Rogue Special Mode None Game No. 204 Rogue 204 Adventurer 0 Explorer 0 Win Type - Total 0 Types 0/0/0/0/0/0/0/0/0/0 Lore% 32 Gallery% 25 Achievement% 22 Wizard Run 0 Options --------- Layout 2 ASCII 0 Keyboard 0 Movement Mouse Keybinds 0 Fullscreen 1 Font 24/Smallcaps Map View 50x44 Zoom Use 0% Tactical HUD 0 Map Filters NONE Filters NONE Steam 1 RUN: e5a5f15e-4bb6-40eb-8143-69827f1041f8